Cogmind - Beta 17.1 @@@ ROGUE MODE // 2026.09.06 @ 13:38:01 Player: Rocko1345 Result: Self-destructed Performance ------------- Evolutions (4) 2000 Regions Visited (4) 800 Robots Destroyed (14) 70 Value Destroyed (552) 552 Prototype IDs (12) 240 Alien Tech Used (0) 0 Bonus (300) 300 TOTAL SCORE: 3962 Bonus ------- Registered with UFD 300 Cogmind --------- Core Integrity 671/850 Matter 189/300 Energy 341/450 System Corruption 1% Temperature Cool (0) Movement Treading (160) Location -6/Factory Parts ------- > --- POWER (2) -------- (None) > --- PROPULSION (3) --- Improved Medium Treads Flexi-carbon Leg > --- UTILITY (6) ------ Medium Storage Unit Energy Well Improved Terrain Scanner Experimental Terrain Scan Processor Targeting Computer Core Analyzer > --- WEAPON (4) ------- Gauss Rifle > --- INVENTORY (10) --- Flexi-carbon Leg EM Disruption Field Authchip [R/Combat] Improved System Restoration Module Assault Rifle Assault Rifle DRS Beacon (Ready) Peak State ------------ > --- POWER ------------ Deuterium Engine > --- PROPULSION ------- Improved Titanium Leg Armored Leg > --- UTILITY ---------- Improved Cooling System Medium Storage Unit Energy Well Improved Terrain Scanner Experimental Terrain Scan Processor Core Analyzer > --- WEAPON ----------- Minigun Hypervelocity Gauss Rifle Hypervelocity Gauss Rifle Hypervelocity Gauss Rifle > --- INVENTORY -------- EM Disruption Field Authchip [R/Combat] Improved System Restoration Module Assault Rifle Assault Rifle DRS Beacon [Rating: 57] Favorites ----------- Power Deuterium Engine Engine Deuterium Engine Propulsion Armored Leg Treads Improved Medium Treads Leg Armored Leg Utility Improved Terrain Scanner Device Improved Terrain Scanner Storage Small Storage Unit Processor Experimental Terrain Scan Processor Weapon Assault Rifle Ballistic Gun Assault Rifle Build | -11 -10 -10 -8 -6 ------- Run | Yrd Mat Sub Scr Fac Slots Evolved 8 | . . . . 8 Power 1 | . . . . 1 Propulsion 1 | . . . . 1 Utility 4 | . . . . 4 Weapon 2 | . . . . 2 Parts Attached 27 | 7 . . 4 16 Power 2 | 1 . . 1 . Engine 2 | 1 . . 1 . Core . | . . . . . Reactor . | . . . . . Propulsion 9 | 2 . . 2 5 Treads 1 | . . . . 1 Leg 8 | 2 . . 2 4 Wheel . | . . . . . Hover . | . . . . . Flight . | . . . . . Utility 9 | 2 . . 1 6 Device 3 | 1 . . . 2 Storage 3 | 1 . . 1 1 Processor 3 | . . . . 3 Hackware . | . . . . . Protection . | . . . . . Artifact . | . . . . . Weapon 7 | 2 . . . 5 Energy Gun . | . . . . . Energy Cannon . | . . . . . Ballistic Gun 7 | 2 . . . 5 Ballistic Cannon . | . . . . . Launcher . | . . . . . Special Weapon . | . . . . . Impact Weapon . | . . . . . Slashing Weapon . | . . . . . Piercing Weapon . | . . . . . Special Melee Weapon . | . . . . . Unidentified Prototypes . | . . . . . Parts Lost 11 | . . . . 11 Power 1 | . . . . 1 Propulsion 4 | . . . . 4 Utility 2 | . . . . 2 Weapon 4 | . . . . 4 Highest Loss Streak 7 | . . . . 7 To Critical Strikes . | . . . . . Average Backups 5 | . . 3 7 4 Power . | . . . . . Propulsion . | . . . . . Utility 3 | . . 1 5 2 Weapon 1 | . . 2 1 1 Tool/Special . | . . . . . Unused Backups 10 | . . . 7 3 Power 1 | . . . 1 . Propulsion . | . . . . . Utility 5 | . . . 2 3 Weapon 4 | . . . 4 . Tool/Special . | . . . . . Average Slot Usage (%) 93 | . 100 100 100 76 Engine 11 | . 14 14 14 4 Leg 23 | . 28 28 28 12 Device 13 | . 14 14 14 11 Storage 13 | . 14 14 14 12 Processor 3 | . . . . 13 Ballistic Gun 25 | . 28 28 28 19 Peak Build Rating 57 | 9 9 10 21 57 Average Rating 25 | 4 9 9 19 48 On Entrance 9 | . 9 9 10 21 Avg Prop Armor Cover (%) 9 | . . . . 9 Naked Turns . | . . . . . Heaviest Build 48 | 15 15 15 24 48 Greatest Support 55 | 20 20 20 36 55 Greatest Overweight (x) 2 | . . . . 2 Average Overweight (x) . | . . . . . Largest Inventory Capacity 10 | 8 8 8 10 10 Average Capacity 8 | 6 8 8 8 10 Most Carried 8 | . 2 6 8 7 Average Carried 6 | . . 4 7 5 Final Capacity 10 | 8 8 8 10 10 Final Carried 8 | . 2 6 8 7 Class Distribution -------------------- 75% | Mutant 19% | Skirmisher 5% | Scavenger-Mutant Dominant Class ---------------- Mutant | -10/Materials Mutant | -10/Subcaves Mutant | -8/Scraptown Skirmisher | -6/Factory Resources | -11 -10 -10 -8 -6 ----------- Run | Yrd Mat Sub Scr Fac Matter Collected 815 | 138 76 74 30 497 Remotely . | . . . . . Salvage Created 634 | 27 . . . 607 Parts 39 | 4 . . . 35 Haulers Intercepted . | . . . . . Recyclers Shooed 4 | . . . . 4 Parts Field Recycled . | . . . . . Retrieved Matter . | . . . . . Parts Self-Destructed . | . . . . . Prevented . | . . . . . Parts Restored . | . . . . . Kills | -11 -10 -10 -8 -6 ------- Run | Yrd Mat Sub Scr Fac Combat Hostiles Destroyed 10 | . . . . 10 Guns 9 | . . . . 9 AOE 1 | . . . . 1 Classes Destroyed 8 | 1 . . . 7 Tunneler 2 | 1 . . . 1 Recycler 1 | . . . . 1 Operator 1 | . . . . 1 Swarmer 4 | . . . . 4 Grunt 1 | . . . . 1 Specialist 2 | . . . . 2 Hunter 2 | . . . . 2 Programmer 1 | . . . . 1 Best Kill Streak 6 | 1 . . . 6 Combat Bots Only 6 | . . . . 6 Max Kills in Single Turn 2 | 1 . . . 2 Gunslinging . | . . . . . Exploded 1 | . . . . 1 Melee . | . . . . . Uniques/NPCs Destroyed . | . . . . . Combat | -11 -10 -10 -8 -6 -------- Run | Yrd Mat Sub Scr Fac Hostile Shots Fired 88 | . . . . 88 Missed 26 | . . . . 26 Hits 62 | . . . . 62 Projectile 62 | . . . . 62 Critical Strikes 1 | . . . . 1 Damage Taken 1568 | . . . . 1568 Core 179 | . . . . 179 Absorbed by Shields . | . . . . . Core Remaining (%) 100 | 100 . . 100 . Volleys Fired 35 | 2 . 1 . 32 Largest 4 | 2 . 2 . 4 Hottest 124 | 40 . 40 . 124 Shots Fired 109 | 4 . 2 . 103 Gun 109 | 4 . 2 . 103 Cannon . | . . . . . Launcher . | . . . . . Special . | . . . . . Kinetic 109 | 4 . 2 . 103 Thermal . | . . . . . Explosive . | . . . . . Electromagnetic . | . . . . . Robot Hit Streak 8 | 1 . 3 . 8 Robot Miss Streak 7 | 2 . . . 7 Penetration Max 1 | . . . . 1 Secondary Targets 3 | . . . . 3 Max Gunslinging Chain 1 | . . . . 1 Shots Hit Robots 58 | 1 . 2 . 55 Core Hits 39 | 1 . 1 . 37 Critical Kills 5 | . . . . 5 Critical Parts Destroyed 11 | . . . . 11 Critical Strikes 16 | . . . . 16 Destroy 16 | . . . . 16 Melee Attacks . | . . . . . Impact . | . . . . . Slashing . | . . . . . Piercing . | . . . . . Sneak Attacks . | . . . . . Combat Hostiles . | . . . . . Follow-up Attacks . | . . . . . Damage Inflicted 960 | 12 . 28 . 920 Guns 597 | 12 . 28 . 557 Cannons . | . . . . . Explosions 363 | . . . . 363 Melee . | . . . . . Ramming . | . . . . . Kinetic 597 | 12 . 28 . 557 Thermal . | . . . . . Explosive 363 | . . . . 363 Electromagnetic . | . . . . . Impact . | . . . . . Slashing . | . . . . . Piercing . | . . . . . Highest Corruption 1 | . . . . 1 Average Corruption 1 | . . . . 1 Corruption Purged . | . . . . . Corruption Blocked . | . . . . . Effects 2 | . . . . 2 Matter Fused 1 | . . . . 1 Data Loss (major) 1 | . . . . 1 Overload Shots . | . . . . . Overflow Damage 1 | . . . . 1 Projectiles . | . . . . . Explosions 1 | . . . . 1 Melee . | . . . . . Knockbacks . | . . . . . Impact . | . . . . . Kinetic . | . . . . . Secondary . | . . . . . Self-Inflicted Damage 272 | . . . . 272 Shots 3 | . . . . 3 Rammed . | . . . . . Targets Rammed . | . . . . . Kicked . | . . . . . Crushed . | . . . . . Highest Temperature 20 | . . . . 20 Average Temperature 11 | . . . . 11 Received Heat Transfer 90 | . . . . 90 Siege Activations . | . . . . . Martial Activations . | . . . . . Shielding Activations . | . . . . . Robots Disrupted . | . . . . . Combat Hostiles . | . . . . . Robots Corrupted . | . . . . . Combat Hostiles . | . . . . . Parts Fried . | . . . . . Impact Corruptions . | . . . . . Robots Melted . | . . . . . Combat Hostiles . | . . . . . Parts Melted . | . . . . . Heat Transferred . | . . . . . Parts Sabotaged . | . . . . . Parts Stolen . | . . . . . Parts Stripped . | . . . . . Power Chain Reactions . | . . . . . Alert | -11 -10 -10 -8 -6 ------- Run | Yrd Mat Sub Scr Fac Maximum Alert Level . | . . . . . Low Security (%) 100 | 100 100 . . 100 Level 1 . | . . . . . Level 2 . | . . . . . Level 3 . | . . . . . Level 4 . | . . . . . Level 5 . | . . . . . High Security . | . . . . . Max Security . | . . . . . Peak Influence 153 | 5 30 . . 153 Initial . | . . . . . Average 28 | . 8 . . 33 Influence Increases 375 | 5 30 . . 340 Destroy 0b10 Robot/C 200 | . . . . 200 Destroy 0b10 Robot/NC 20 | 5 . . . 15 Destroy Leader 40 | . . . . 40 Disable Machine 45 | . . . . 45 Destroy Structure 25 | . . . . 25 Lose Combat Pursuer 45 | . 30 . . 15 Influence Decreases 260 | 5 20 10 . 225 Entered New Map 6 | . . 6 . . Time Decay 144 | 5 20 4 . 115 Lost Part 110 | . . . . 110 Squads Dispatched 7 | . 3 . . 4 Investigation . | . . . . . Extermination 1 | . . . . 1 Reinforcement 6 | . 3 . . 3 Assault . | . . . . . Garrison . | . . . . . Intercept . | . . . . . Searches Triggered . | . . . . . Construction Impeded 1 | . . . . 1 Haulers Reinforced . | . . . . . Active Scanning Responses . | . . . . . Cargo Convoy Interrupts . | . . . . . Stealth | -11 -10 -10 -8 -6 --------- Run | Yrd Mat Sub Scr Fac Distress Signals 3 | . 1 . . 2 Communications Jammed . | . . . . . Distress Signals . | . . . . . Times Spotted 23 | . 1 2 . 20 Peak Tracking Total 5 | . 3 2 . 5 Tactical Retreats 2 | . 1 . . 1 Traps | -11 -10 -10 -8 -6 ------- Run | Yrd Mat Sub Scr Fac Traps Triggered 1 | . . . . 1 Indirectly . | . . . . . Trap Hack Attempts . | . . . . . Triggered . | . . . . . Disarmed . | . . . . . Reprogrammed . | . . . . . Reused . | . . . . . Traps Extracted . | . . . . . Installed . | . . . . . Triggered . | . . . . . Machines | -11 -10 -10 -8 -6 ---------- Run | Yrd Mat Sub Scr Fac Machines Disabled 3 | . . . . 3 Max in Single Turn 3 | . . . . 3 Machines Repaired . | . . . . . Machines Dismantled . | . . . . . Machines Sabotaged . | . . . . . Overloaded Fab Kills . | . . . . . Hacking | -11 -10 -10 -8 -6 --------- Run | Yrd Mat Sub Scr Fac Machines Accessed 8 | . . . 5 3 Terminals 1 | . . . . 1 Fabricators 2 | . . . . 2 Repair Stations . | . . . . . Recycling Units . | . . . . . Scanalyzers . | . . . . . Garrison Access . | . . . . . Total Hacks 23 | . . . 20 3 Successful 22 | . . . 20 2 Failed 1 | . . . . 1 Catastrophic . | . . . . . Database Lockouts . | . . . . . Manual . | . . . . . Terminals 1 | . . . . 1 Fabricators 2 | . . . . 2 Repair Stations . | . . . . . Recycling Units . | . . . . . Scanalyzers . | . . . . . Garrison Access . | . . . . . Terminal Hacks 20 | . . . 20 . Record 13 | . . . 13 . Robot Analysis 6 | . . . 6 . Proto ID Catalog 1 | . . . 1 . Fabricator Hacks 2 | . . . . 2 Network Status 2 | . . . . 2 Repair Station Hacks . | . . . . . Recycling Unit Hacks . | . . . . . Scanalyzer . | . . . . . Garrison Access Hacks . | . . . . . Unauthorized Hacks . | . . . . . Terminals . | . . . . . Fabricators . | . . . . . Repair Stations . | . . . . . Recycling Units . | . . . . . Scanalyzers . | . . . . . Garrison Access . | . . . . . Data Cores Recovered . | . . . . . Used . | . . . . . Hacking Detections 2 | . . . . 2 Full Trace Events . | . . . . . Feedback Events . | . . . . . Feedback Blocked . | . . . . . Robot Schematics Acquired . | . . . . . Robots Built . | . . . . . Authchips . | . . . . . Time . | . . . . . Total Robot Build Rating . | . . . . . Part Schematics Acquired . | . . . . . Parts Built . | . . . . . Authchips . | . . . . . Time . | . . . . . Total Part Build Rating . | . . . . . Part Studies Acquired . | . . . . . Parts Repaired . | . . . . . Time . | . . . . . Parts Recycled . | . . . . . Recycled Matter . | . . . . . Retrieved Matter . | . . . . . Retrieved Components . | . . . . . Parts Scanalyzed . | . . . . . Part Schematics Acquired . | . . . . . Parts Damaged . | . . . . . Bothacking | -11 -10 -10 -8 -6 ------------ Run | Yrd Mat Sub Scr Fac Used RIF Installer . | . . . . . Robots Hacked . | . . . . . Non-combat . | . . . . . Combat . | . . . . . Robot Hacks Applied . | . . . . . Relay Couplers Released . | . . . . . Fabnet Peak Effective % . | . . . . . Robots Rewired . | . . . . . Allies Hacked . | . . . . . Hacks Repelled . | . . . . . Allies | -11 -10 -10 -8 -6 -------- Run | Yrd Mat Sub Scr Fac Total Allies . | . . . . . Largest Group . | . . . . . Highest-Rated Group . | . . . . . Highest-Rated Ally . | . . . . . Initial UFD Resources 24 | . . . . 24 Total Orders . | . . . . . Ally Attacks . | . . . . . Total Damage . | . . . . . Kills . | . . . . . Allies Corrupted . | . . . . . Allies Melted . | . . . . . Intel | -11 -10 -10 -8 -6 ------- Run | Yrd Mat Sub Scr Fac Active Infowar (turns) 3238 | 15 126 221 2105 771 Terrain 3238 | 15 126 221 2105 771 Robot Analysis Total 6 | . . . 6 . Derelict Logs Recovered 2 | . . . 2 . Drone Launches . | . . . . . Drone Recoveries . | . . . . . Exploration | -11 -10 -10 -8 -6 ------------- Run | Yrd Mat Sub Scr Fac Turns Passed 3422 | 89 126 221 2105 881 Spaces Moved 2462 | 62 103 166 1677 454 Core 2 | 2 . . . . Treads 23 | . . . . 23 Legs 2437 | 60 103 166 1677 431 Wheels . | . . . . . Hover . | . . . . . Flight . | . . . . . Fastest Speed 50 | 50 120 120 120 120 Average Speed 130 | 117 120 120 124 161 Slowest Speed 260 | 120 120 120 125 260 Overloaded Moves . | . . . . . Propulsion Burnouts . | . . . . . Robots Hopped . | . . . . . Potential Cave-ins . | . . . . . Cave-ins Triggered . | . . . . . Exploration Rate (%) 27 | 4 17 15 90 13 Regions Visited 4 Branch Regions 2 Pre-discovered Areas . | . . . . . Known Exits Taken . | . . . . . Unknown Exits Taken 4 | 1 1 1 1 . Scrap Searched 8 | . . . 8 . Spaces Dug . | . . . . . Terrain Destroyed 29 | . . . . 29 Melee . | . . . . . Projectile . | . . . . . AOE 26 | . . . . 26 Terrain Rammed . | . . . . . Walls Destroyed . | . . . . . Machines Disabled . | . . . . . Actions | -11 -10 -10 -8 -6 --------- Run | Yrd Mat Sub Scr Fac Total 2598 | 70 105 186 1703 534 Wait 51 | . 1 14 5 31 Move 2458 | 61 102 165 1676 454 Hop . | . . . . . Pick Up 17 | . 2 5 9 1 Fast Attach 15 | 7 . . . 8 Attach 5 | . . . . 5 Detach . | . . . . . Swap 7 | . . . 4 3 Drop 10 | . . 1 9 . Fire 35 | 2 . 1 . 32 Melee . | . . . . . Ram . | . . . . . Kick . | . . . . . Crush . | . . . . . Escape Stasis . | . . . . . Rewire . | . . . . . Trap . | . . . . . Miscellaneous . | . . . . . Route ------- -11/Scrapyard -10/Materials -10/Subcaves -8/Scraptown (discovered 2 exits: *Fac x2) -6/Factory (discovered 1 exit: [Ext]) History --------- Turn | Location | Event 15 | -11/Scrapyard | Discovered new exit (range 15) 90 | -11/Scrapyard | Entered Materials 91 | -10/Materials | Met a group of wandering Federalists 203 | -10/Materials | Discovered new exit (range 9) 216 | -10/Materials | Entered Subcaves 217 | -10/Subcaves | Continued accompanying wandering Federalists (5) 313 | -10/Subcaves | Build established: Mutant 422 | -10/Subcaves | Wandering Federalist uncovered a shortcut to Scraptown 437 | -10/Subcaves | Entered Scraptown 669 | -8/Scraptown | Visited Awakened 719 | -8/Scraptown | Visited Junk Repository 822 | -8/Scraptown | Visited Fellowship of the Rings 843 | -8/Scraptown | Visited Assassins FH 904 | -8/Scraptown | Scanned Subdweller tech in exchange for log data 908 | -8/Scraptown | Learned location of 1 exit from Upper Caves 909 | -8/Scraptown | Learned Factory security intel 927 | -8/Scraptown | Discovered new exit (range 11) 1449 | -8/Scraptown | Visited Scrapoid Research Area 1495 | -8/Scraptown | Visited Bundlers 1609 | -8/Scraptown | Visited Shadow of the Wyrm 1688 | -8/Scraptown | Visited UFD Registry 1688 | -8/Scraptown | Registered with UFD as "Cogmech" 1749 | -8/Scraptown | Visited Infowarlord's Domain 1766 | -8/Scraptown | Found Exp. Terrain Scan Processor 1796 | -8/Scraptown | Visited Science Guys 1852 | -8/Scraptown | Visited Derelict Rescue Squad 1865 | -8/Scraptown | Found DRS Beacon 1897 | -8/Scraptown | Visited Scrapoid Pod Storage 1923 | -8/Scraptown | Visited Scrap Suit Storage 1983 | -8/Scraptown | Visited Science Testing Area 2211 | -8/Scraptown | Visited Analyses Database 2257 | -8/Scraptown | Visited Botcube Research 2287 | -8/Scraptown | Visited Sword Containment 2441 | -8/Scraptown | Discovered new exit (range 5) 2542 | -8/Scraptown | Entered Factory 2542 | -6/Factory | Evolved 8 slots: Power x1, Propulsion x1, Utility x4, Weapon x2 2616 | -6/Factory | Allied Derelicts emerged from ambush trap array 2826 | -6/Factory | Discovered new exit (range 14) 2843 | -6/Factory | Build established: Skirmisher 3252 | -6/Factory | Lost 7 parts (2n1u4w) 3423 | -6/Factory | Self-destructed Last Messages --------------- 03304_ Slug penetrates Nuclear Reactor. 03308_ Nuclear Reactor explodes. 03308_ Fusion Modulator explodes. 03308_ Flexi-carbon Leg destroyed. 03308_ Destroyed Flexi-carbon Leg. 03308_ X-62 Marksman destroyed. 03308_ Slug penetrates Wall. 03308_ Penetrated by Slug. 03310_ X-62 Marksman destroyed. 03315_ Acquired Targeting Computer. 03316_ ALERT: Security rotation in progress. 03317_ Acquired 49 matter. 03327_ U-05 Engineer builds a Wall. 03335_ U-05 Engineer builds a Door. 03337_ U-05 Engineer lays Concrete. 03362_ System corrupted: Substantial component data lost. 03365_ Connecting with Fabricator... 03385_ Acquired Imp. Medium Treads. 03396_ Connecting with Terminal... Map ----- +----------------------------------------------------+ | ############? ??????????????????????????????????? | | ############ ????????????????????????????????? | | ############ #???????????????????????????????? | | ############ #???????????????????????????????? | | ######## #? ?????????????????????????????? | | """ ######## # ??????????????????????????????? | | """ ######## # ??????????????????????????????? | | F" # # ?????????????????????????????? | | "" # ! # ????????????????????????????? | | # + ?????? ?????????????????????? | | """ + #? ?? ? ?? #??????????????????? | | """ # !! !!! # ####???????????????? | | """ # !! !!! # ######??#??????????? | | # !! !!! # ########???????????? | | """ # # #########??????????? | | """ # ! #####+###############?###???????? | | """ # ##################????????? | | # ###################???????? | | #+### ##################?#??????? | | # ### !! #################?##??????? | | # ### ! ####?###############??????? | | # ########## ####################?????? | | # ########## ####?################????? | | # ########## """ """ ##################?#?????? | | # ########## """ """ # #########?#????? | | # ########## """ """ #@ "" ###########????? | | # "" "" # """ ###########????? | | # ##### "" "" # """ T" ##########?#???? | | # ##### # """ """ ###########????? | | # ##### """ """ + """ "" #######?###????? | | #+#####+## """ """ # ###########????? | | # """ """ # ########??#????? | | """ """ # "" ###################?#????? | | """ """ # "" #######???????? | | """ """ # ######?#??????? | | # #######???????? | | """ """ # #####?#???????? | | """ """ + # ????????? | | """ """ # """ # ??????????? | | # "" F"" # ??????????? | | """ """ # """""" # ? ??????????? | | """ """ # """" #?????????????? | | """ """ ############+###### #?????????????? | | ###### # #?????????????? | | ########+###### # #?????????????? | | # ###### """ """ # +?????????????? | | # ###### """ """ + #?????????????? | | # ###### """ """ # #?????????????? | | # ###### # #?????????????? | | ! # ###### """ """ # #?????????????? | +----------------------------------------------------+ Best States ------------- Heat Dissipation 64 Energy Generation 14 Energy Capacity 625 Matter Stores 300 Matter Capacity 300 Sight Range 16 Terrain Scan Range 16 Terrain Scan Density 1010 Phase Shifting 5 Evasion (%) 55 Targeting Accuracy 5 Core Analysis 6 Recoil Reduction 1 Authchip Count 1 Item Schematics ----------------- None Robot Schematics ------------------ None Fabricated ------------ Nothing Repaired ---------- Nothing Studied --------- None Alien Tech Used ----------------- None Achievements -------------- None Challenges ------------ None Game ------ Seed TrapSegregatorAmplifier Manual? 0 Play Time 00:27:36 Cumulative 248.9 hours Start 2026.09.05 @ 23:05:45 End 2026.09.06 @ 13:38:01 Sessions 3 Manual Loads 0 Difficulty Rogue Special Mode None Game No. 310 Rogue 136 Adventurer 174 Explorer 0 Win Type - Total 1 Types 1/0/0/0/0/0/0/0/0/0 Lore% 68 Gallery% 57 Achievement% 42 Wizard Run 0 Options --------- Layout 2 ASCII 0 Keyboard 1 Movement Numpad Keybinds 0 Fullscreen 1 Font 24/Smallcaps Map View 50x44 Zoom Use 0% Tactical HUD 1 Map Filters NONE Filters NONE Steam 1 RUN: 671fe4e7-1524-4454-a3a9-1a516222398b